bitfinex/quotes_ETHUSD_20250223
["timestamp","ask_amount","ask_price","bid_price","bid_amount"]
[1740319129929,5.24,2815.0,2813.9,0.7735]
[1740319133017,5.24,2815.2,2813.9,0.7735]
[1740319135605,5.24,2815.2,2814.0,0.27320717]
[1740319135812,5.24,2815.2,2814.1,0.7735]
[1740319136813,0.818,2815.0,2814.1,0.7735]
[1740319138117,0.55,2814.9,2814.1,0.7735]
[1740319138795,5.24,2814.8,2814.1,0.7735]
[1740319138997,0.579,2814.7,2814.1,0.7735]
[1740319140716,5.24,2814.8,2814.1,0.7735]
[1740319142190,5.24,2815.2,2814.1,0.7735]
[1740319142811,5.24,2815.2,2814.3,0.7735]
[1740319145412,3.0,2815.8,2814.3,0.7735]
[1740319145614,0.824,2815.7,2814.4,0.7548]
[1740319146613,8.24,2815.8,2814.4,0.7548]
[1740319146778,5.24,2815.8,2814.4,0.7548]
[1740319148398,5.24,2816.0,2814.4,0.7548]
[1740319151242,5.24,2816.1,2814.7,0.8043]
[1740319152513,5.24,2816.6,2815.0,0.8043]
[1740319152714,5.24,2816.8,2815.2,0.8043]
[1740319153590,5.24,2816.8,2815.3,0.8043]
[1740319153786,3.0,2816.9,2815.5,0.8043]
[1740319154187,5.24,2817.0,2815.5,0.8043]
[1740319155422,5.24,2817.1,2815.7,0.8043]
[1740319155634,5.24,2817.1,2815.9,0.8043]
[1740319155809,5.24,2817.4,2815.9,0.8043]
[1740319156358,0.55,2817.3,2815.9,0.8043]
[1740319156539,0.7557,2817.2,2815.9,0.8043]
[1740319158219,0.55,2817.1,2815.9,0.8043]
[1740319158432,0.55,2817.1,2816.0,0.8043]
[1740319159415,3.55,2816.9,2816.0,0.8043]
[1740319159615,0.55,2816.7,2816.0,0.8043]
[1740319160561,3.0,2816.5,2816.0,0.8043]
[1740319160778,5.79,2816.4,2815.3,0.8043]
[1740319161063,0.95457,2816.3,2815.3,0.8043]
[1740319161614,5.24,2816.4,2815.3,0.8043]
[1740319165473,0.55,2816.3,2815.3,0.8043]
[1740319165627,0.55,2816.1,2815.3,0.8043]
[1740319167518,3.0,2816.3,2815.3,0.8043]
[1740319167723,0.824,2816.2,2815.3,0.8043]
[1740319168254,0.7506,2816.1,2815.3,0.8043]
[1740319168441,5.9906,2816.1,2815.3,0.8043]
[1740319168773,5.24,2816.1,2815.3,0.8043]
[1740319174549,3.0,2816.5,2815.3,0.8043]
[1740319174747,0.824,2816.4,2815.3,0.8043]
[1740319176495,3.0,2816.5,2815.3,0.8043]
[1740319177243,5.24,2816.6,2815.3,0.8043]
[1740319180455,0.818,2817.2,2815.6,0.8006]
[1740319180788,5.24,2817.1,2815.6,0.8006]
[1740319182195,5.24,2817.1,2815.8,0.8006]
[1740319182356,6.1458,2817.1,2815.8,0.8006]
[1740319183496,5.24,2817.1,2815.8,0.8006]
[1740319184553,5.24,2817.2,2816.0,0.7651]
[1740319186258,5.24,2817.3,2816.0,0.7651]
[1740319189300,8.24,2817.5,2816.2,0.8128]
[1740319189605,8.24,2817.5,2816.4,0.8128]
[1740319191006,0.8161,2817.3,2816.4,0.8128]
[1740319191311,0.55,2817.2,2816.4,0.8128]
[1740319195274,5.24,2817.1,2816.4,0.8128]
[1740319200313,5.24,2817.2,2816.4,0.8128]
[1740319202335,6.0561,2818.1,2816.4,0.8128]
[1740319202535,0.87361,2818.0,2816.4,0.8128]
[1740319202735,3.60561,2818.0,2816.4,0.8128]
[1740319203489,5.24,2818.1,2816.7,0.8243]
[1740319204911,0.55,2817.8,2816.7,0.8243]
[1740319205640,0.55,2817.6,2816.7,0.8243]
[1740319206901,0.8202,2817.5,2816.7,0.8243]
[1740319207100,5.24,2817.4,2816.7,0.8243]
[1740319207299,0.42599021,2817.3,2816.7,0.8243]
[1740319208030,5.66599021,2817.3,2816.7,0.8243]
[1740319208238,0.55,2817.2,2816.7,0.8243]
[1740319208438,0.55,2817.0,2816.4,0.803]
[1740319209207,6.41659021,2817.3,2816.4,0.803]
[1740319209410,0.90965902,2817.2,2816.4,0.803]
[1740319211903,0.268,2817.2,2816.4,0.803]
[1740319213712,4.7338,2817.2,2816.4,0.803]
[1740319213908,4.4658,2817.2,2816.4,0.803]
[1740319216554,4.4658,2817.2,2816.4,5.39]
[1740319216725,4.4658,2817.2,2816.5,0.803]
[1740319216927,4.4658,2817.2,2816.7,0.803]
[1740319217909,0.55,2817.0,2815.9,5.39]
[1740319218159,5.24,2816.9,2815.8,0.803]
[1740319222049,5.24,2817.0,2815.8,0.803]
[1740319222995,1.3006,2816.9,2815.8,0.803]
[1740319224793,5.24,2816.8,2815.8,0.803]
[1740319225088,0.65406,2816.7,2815.8,0.803]
[1740319227973,5.89406,2816.7,2815.8,0.803]
[1740319230708,5.24,2816.7,2815.8,0.803]
[1740319231831,4.4658,2817.2,2815.9,0.55]
[1740319232002,4.4658,2817.2,2816.0,0.8008]
[1740319232619,4.4658,2817.2,2816.3,0.8008]
[1740319232801,4.4658,2817.2,2816.5,0.8008]
[1740319233008,4.4658,2817.2,2816.6,0.38008]
[1740319233234,4.4658,2817.2,2816.7,0.8008]
[1740319233707,4.4658,2817.2,2816.9,0.8008]
[1740319234101,4.4658,2817.2,2817.0,0.55]
[1740319234295,4.4658,2817.2,2817.1,9.7408]
[1740319234296,2.7992,2817.2,2817.1,9.7408]
[1740319234498,1.7364,2817.2,2817.1,10.74071573]
[1740319234935,1.7364,2817.2,2817.1,10.19071573]
[1740319235840,1.7364,2817.2,2817.1,10.89619902]
[1740319239626,1.7364,2817.2,2817.1,11.44619902]
[1740319241105,1.7364,2817.2,2817.1,10.89619902]
[1740319242104,1.7364,2817.2,2817.1,7.89619902]
[1740319242719,1.7364,2817.2,2817.1,2.50619902]
[1740319242942,1.7364,2817.2,2817.1,0.93498329]
[1740319251979,1.7364,2817.2,2817.1,0.70548329]
[1740319252486,1.7364,2817.2,2816.4,3.0]
[1740319253064,1.7364,2817.2,2816.3,5.39]
[1740319253379,1.7364,2817.2,2815.8,5.658]
[1740319253552,1.7364,2817.2,2815.9,0.6724778]
[1740319254318,1.7364,2817.2,2815.9,3.6724778]
[1740319255013,0.7901,2817.1,2815.9,3.6724778]
[1740319255886,0.7901,2817.1,2816.0,0.55]
[1740319256079,0.7901,2817.1,2815.9,3.94267121]
[1740319256280,0.7901,2817.1,2816.0,0.93326712]
[1740319260591,0.7901,2817.1,2816.0,6.32326712]
[1740319261226,0.7901,2817.1,2816.1,3.55]
[1740319261523,1.7364,2817.2,2816.3,3.55]
[1740319263993,1.7364,2817.2,2816.8,0.26648811]
[1740319265526,1.7364,2817.2,2816.5,3.0]
[1740319265692,0.7503,2817.1,2816.5,3.0]
[1740319265892,0.7503,2817.1,2816.4,5.39]
[1740319267030,0.7503,2817.1,2816.5,3.0]
[1740319271739,0.7503,2817.1,2816.4,5.66123303]
[1740319271899,0.7503,2817.1,2815.7,0.268]
[1740319272095,0.7525,2817.0,2815.7,5.658]
[1740319272331,0.7525,2817.0,2815.8,3.0]
[1740319273539,0.7525,2817.0,2816.0,0.26031131]
[1740319274427,0.7525,2817.0,2815.8,3.0]
[1740319275438,0.7525,2816.9,2815.5,3.55]
[1740319275638,0.59925,2816.8,2815.6,0.894]
[1740319275809,0.7525,2816.7,2815.6,0.894]
[1740319276009,0.7525,2816.6,2815.6,0.894]
[1740319276214,0.7525,2816.6,2815.4,5.39]
[1740319279055,5.24,2816.5,2815.0,5.39]
[1740319279268,0.8182,2816.4,2814.8,5.39]
[1740319279475,0.8182,2816.2,2814.8,5.39]
[1740319279616,0.8182,2816.0,2814.8,5.929]
[1740319281462,0.8182,2815.9,2814.8,0.539]
[1740319281661,0.8182,2815.7,2814.2,0.268]
[1740319281857,0.8182,2815.6,2814.1,3.0]
[1740319283518,0.8182,2815.6,2814.1,3.2689992]
[1740319285392,0.7784,2815.5,2814.0,5.39]
[1740319285538,0.7784,2815.4,2814.0,5.39]
[1740319285732,0.7784,2815.2,2814.1,3.539]
[1740319288729,0.825,2815.1,2814.1,3.539]
[1740319290564,0.825,2815.1,2814.1,0.539]
[1740319290763,0.825,2815.1,2813.8,5.39]
[1740319292772,0.825,2815.0,2813.8,5.39]
[1740319315530,3.0,2814.8,2813.5,0.03354412]
[1740319315790,0.8215,2814.6,2813.5,0.03354412]
[1740319315962,1.45445,2814.5,2813.5,0.03354412]
[1740319316171,0.8215,2814.4,2813.5,0.03354412]
[1740319318852,0.268,2814.3,2813.5,0.03354412]
[1740319319084,0.8215,2814.2,2813.5,0.03354412]
[1740319319288,5.24,2814.2,2813.5,0.03354412]
[1740319319503,0.8215,2814.0,2813.5,0.03354412]
[1740319330110,0.8112,2813.9,2812.3,6.0923623]
[1740319330319,0.8112,2813.7,2812.2,0.0345]
[1740319333119,5.24,2813.7,2811.9,3.30724474]
[1740319333450,0.8112,2813.5,2812.0,0.89652447]
[1740319334844,3.524,2813.6,2811.4,5.39]
[1740319334845,0.8112,2813.2,2811.4,5.39]
[1740319335154,0.8112,2813.0,2811.5,3.0]
[1740319335356,0.8112,2813.0,2811.4,5.39]
[1740319335543,0.8112,2813.0,2811.5,0.27298497]
[1740319335856,0.8112,2813.0,2811.8,0.55]
[1740319337266,0.8112,2813.0,2811.7,0.0345]
[1740319340365,6.0512,2813.0,2811.6,0.58444774]
[1740319340625,0.8112,2812.9,2811.6,0.58444774]
[1740319343072,0.8112,2812.9,2811.2,0.0345]
[1740319343073,0.8148,2812.7,2810.9,5.39]
[1740319343241,0.8148,2812.6,2810.9,5.39]
[1740319343437,0.8148,2812.4,2811.0,3.0]
[1740319344384,0.8148,2812.4,2810.9,5.39]
[1740319344688,0.8148,2812.2,2811.0,3.55769181]
[1740319346683,5.24,2812.2,2811.0,3.55769181]
[1740319346893,0.8148,2812.1,2811.0,3.55769181]
[1740319347494,0.8148,2812.1,2811.1,0.55]
[1740319347693,0.8148,2812.1,2811.3,0.55]
[1740319347858,0.8148,2812.1,2811.0,3.55769181]
[1740319348061,0.8148,2812.1,2811.1,0.89821918]
[1740319354009,0.8148,2812.1,2811.2,0.55]
[1740319358576,0.8148,2812.1,2811.2,5.94]
[1740319363105,0.8148,2812.1,2811.2,5.39]
[1740319363320,0.8148,2812.1,2811.2,5.658]
[1740319363522,0.8148,2812.1,2811.3,0.49538474]
[1740319368211,0.8148,2812.1,2811.2,5.39]
[1740319370763,0.8148,2812.1,2811.0,3.0]
[1740319371262,0.8148,2812.1,2810.8,0.41702627]
[1740319376469,0.78,2812.0,2810.8,0.41702627]
[1740319376680,0.78,2811.9,2810.8,0.41702627]
[1740319376860,0.78,2811.8,2810.8,0.41702627]
[1740319378777,0.78,2811.8,2810.8,5.80702627]
[1740319380572,0.78,2811.8,2810.9,3.0]
[1740319381684,0.7655,2811.7,2810.9,3.0]
[1740319384310,0.7655,2811.7,2811.0,0.55]
[1740319384537,0.7655,2811.7,2811.1,0.355]
[1740319386577,0.7655,2811.7,2811.1,0.623]
[1740319388382,0.7655,2811.7,2811.2,3.0]
[1740319388886,0.7655,2811.7,2811.1,5.39]
[1740319392181,0.8072,2811.5,2811.2,0.70350755]
[1740319394619,0.8072,2811.5,2810.8,0.1524181]
[1740319394800,0.8072,2811.5,2810.9,0.31524181]
[1740319409553,0.8072,2811.5,2811.0,3.0]
[1740319409753,0.7696,2812.6,2811.2,0.0345]
[1740319410064,0.7696,2812.6,2811.3,3.818]
[1740319410445,0.7696,2812.6,2811.6,0.0345]
[1740319410645,0.7696,2812.6,2811.8,0.55]
[1740319410955,0.7696,2812.6,2811.9,3.0]
[1740319411256,0.7696,2812.6,2812.1,0.0345]
[1740319411443,0.7696,2812.6,2812.2,0.268]
[1740319411649,0.7696,2813.3,2812.2,0.268]
[1740319411849,0.7696,2813.3,2812.3,0.33025]
[1740319412733,0.7696,2813.3,2812.4,0.55]
[1740319412937,0.7696,2813.3,2812.5,0.0345]
[1740319413140,0.7696,2813.3,2812.6,3.0]
[1740319417889,0.7696,2813.3,2812.5,5.39]
[1740319418090,0.7696,2813.2,2811.8,0.26942828]
[1740319418283,0.7696,2813.0,2811.6,0.268]
[1740319418459,0.7696,2812.9,2811.6,5.658]
[1740319420303,0.7696,2812.9,2811.7,3.55]
[1740319424213,0.7696,2812.9,2811.7,8.94]
[1740319426409,0.7696,2812.9,2811.7,8.39]
[1740319426606,1.36786,2812.8,2811.7,9.25597796]
[1740319426815,0.7669,2812.7,2811.7,9.25597796]
[1740319427977,0.7669,2812.7,2811.7,8.39]
[1740319428310,1.0235,2812.6,2810.9,5.39]
[1740319428486,0.7565,2812.4,2810.9,5.39]
[1740319428824,0.7565,2812.4,2811.0,3.0]
[1740319429034,0.7565,2812.4,2810.9,5.39]
[1740319429234,0.59965,2812.3,2810.9,5.94424181]
[1740319429532,0.7565,2812.2,2811.0,3.0]
[1740319432199,0.7565,2812.2,2810.8,0.1524181]
[1740319432200,0.7565,2812.1,2810.8,0.1524181]
[1740319433125,5.24,2812.0,2810.8,0.1524181]
[1740319433421,0.7565,2811.7,2810.8,0.1524181]
[1740319442859,0.7565,2811.7,2810.8,0.49435991]
[1740319443736,0.7565,2811.7,2811.0,0.0345]
[1740319444557,0.7565,2811.7,2811.1,3.0]
[1740319449150,5.24,2812.5,2811.1,3.0]
[1740319449151,0.7857,2812.4,2811.2,0.55]
[1740319449367,0.7857,2812.4,2811.4,3.55]
[1740319449562,0.7857,2812.4,2811.6,0.55]
[1740319452265,0.7857,2812.4,2811.5,0.894]
[1740319452466,0.7857,2812.4,2811.1,0.26839518]
[1740319453036,0.7857,2812.4,2811.2,0.55]
[1740319455341,0.7857,2812.4,2811.1,0.26839518]
[1740319456039,0.7857,2812.4,2811.1,0.53539518]
[1740319456239,0.7857,2812.4,2811.2,0.55]
[1740319456640,0.7857,2812.4,2811.3,3.0]
[1740319456874,0.7857,2812.4,2811.4,0.894]
[1740319457170,0.7857,2812.4,2811.5,0.55]
[1740319457977,0.7857,2812.4,2811.7,0.55]
[1740319462475,0.7857,2812.4,2811.9,0.27123363]
[1740319470702,0.7857,2812.4,2812.0,0.55]
[1740319470877,0.7558,2813.2,2812.2,0.55]
[1740319471671,0.7558,2813.2,2812.3,0.0345]
[1740319472186,0.7558,2813.2,2812.4,0.55]
[1740319474106,0.7558,2814.4,2812.8,0.55]
[1740319474419,0.7558,2814.4,2813.0,0.55]
[1740319474709,0.7558,2814.4,2813.2,3.55]
[1740319479113,0.7558,2814.4,2813.6,0.26590801]
[1740319482204,0.7558,2814.4,2813.7,0.55]
[1740319482522,0.7558,2814.4,2813.7,0.817]
[1740319483419,0.7558,2814.4,2813.8,3.0]
[1740319483623,0.7558,2814.4,2813.9,0.9207]
[1740319485717,0.7558,2814.4,2814.0,3.55]
[1740319485921,0.8105,2814.7,2814.0,8.94]
[1740319488313,0.8151,2814.9,2814.2,0.55]
[1740319488516,0.8151,2816.2,2814.5,0.55]
[1740319488718,0.8151,2816.1,2814.7,3.55]
[1740319490215,0.8151,2816.1,2814.8,0.2634373]
[1740319492304,0.8151,2816.0,2814.6,0.355]
[1740319492504,0.8151,2816.0,2814.3,5.657]
[1740319492704,0.55,2815.9,2814.3,5.39]
[1740319492910,0.8151,2815.8,2814.3,5.39]
[1740319493121,0.8151,2815.8,2814.4,3.0]
[1740319493817,0.8151,2815.6,2813.9,0.9207]
[1740319494018,0.8151,2815.4,2814.0,0.26042277]
[1740319495199,0.8151,2815.2,2813.7,5.39]
[1740319495429,0.8151,2815.2,2813.8,3.26727881]
[1740319495627,0.8151,2815.2,2813.9,0.55]
[1740319495831,0.8151,2815.2,2814.0,0.38172788]
[1740319498210,0.8151,2815.2,2814.0,5.77172788]
[1740319500866,0.8151,2815.2,2814.1,0.55]
[1740319501007,0.8151,2815.2,2814.1,3.55]
[1740319501343,0.8151,2815.2,2814.2,5.39]
[1740319501520,0.8151,2815.2,2814.4,0.55]
[1740319501719,0.8151,2815.2,2814.6,0.55]
[1740319501914,0.8151,2815.2,2814.7,3.0]
[1740319504554,0.8151,2815.2,2814.6,5.39]
[1740319506349,0.8151,2815.2,2814.7,3.0]
[1740319506547,0.8151,2815.2,2814.8,0.67556785]
[1740319507236,0.8151,2815.2,2814.4,5.39]
[1740319508151,0.8151,2815.2,2814.5,3.81676318]
[1740319508336,0.8151,2815.2,2814.5,3.0]
[1740319510156,0.8151,2815.2,2814.5,8.39]
[1740319511568,0.8151,2815.2,2814.6,0.55]
[1740319511771,0.8151,2815.2,2814.7,0.894]
[1740319511966,0.8151,2815.2,2814.8,0.55]
[1740319514770,5.79,2815.9,2814.8,6.207]
[1740319514771,0.8282,2815.8,2814.8,6.207]
[1740319514976,0.8282,2815.8,2814.9,3.0]
[1740319515268,0.8282,2815.8,2815.0,5.39]
[1740319515460,0.8282,2815.8,2815.1,4.389]
[1740319516276,0.8282,2815.8,2815.1,3.839]
[1740319517843,0.8282,2815.8,2815.1,0.839]
[1740319518048,0.8282,2815.8,2815.0,5.39]
[1740319518582,0.8282,2815.8,2815.1,3.0]
[1740319522951,0.8282,2815.8,2814.5,3.0]
[1740319523151,0.8266,2815.7,2814.4,5.6625531]
[1740319523683,0.8266,2815.7,2814.5,3.0]
[1740319523886,0.8266,2815.5,2814.5,3.89295531]
[1740319526805,0.8266,2815.5,2814.0,0.267]
[1740319526990,0.8266,2815.4,2814.0,0.267]
[1740319528643,0.8266,2815.4,2814.1,0.5845]
[1740319529103,0.8266,2815.4,2814.4,0.55]
[1740319529656,0.8266,2815.4,2814.5,0.0345]
[1740319530174,0.8266,2815.4,2814.6,0.55]
[1740319530372,0.8266,2815.4,2814.9,0.55]
[1740319530709,0.8266,2815.4,2815.0,0.622]
[1740319531460,0.8266,2815.4,2815.1,3.55]
[1740319531760,0.7557,2815.8,2815.1,3.55]
[1740319533395,0.7557,2815.8,2815.1,3.0]
[1740319533660,0.7557,2815.8,2814.7,0.267]
[1740319533887,0.7557,2815.8,2814.8,0.27302949]
[1740319536504,0.7557,2815.8,2814.9,0.55]
[1740319537397,0.7557,2815.8,2814.9,3.55]
[1740319538099,0.7557,2815.8,2815.1,0.55]
[1740319539102,0.7557,2815.8,2814.9,3.0]
[1740319541876,0.7557,2815.8,2815.0,0.55]
[1740319542914,0.7557,2815.8,2815.0,5.94]
[1740319543285,0.7557,2815.8,2815.0,5.39]
[1740319549918,0.7557,2815.8,2814.8,0.27302949]
[1740319551625,0.7557,2815.8,2814.4,5.39]
[1740319552525,0.7557,2815.8,2814.5,3.0]
[1740319552721,0.55,2815.9,2814.3,0.26670982]
[1740319552722,5.24,2815.7,2814.3,0.26670982]
[1740319552898,0.8168,2815.5,2814.0,5.657]
[1740319553105,0.8168,2815.3,2814.0,5.657]
[1740319553299,5.24,2815.3,2814.1,3.0]
[1740319553523,0.8168,2815.2,2814.1,3.0]
[1740319553732,0.8168,2815.2,2814.0,5.39]
[1740319553924,0.8168,2815.1,2814.1,0.539]
[1740319555325,0.8168,2815.1,2814.1,3.80960534]
[1740319558650,0.8168,2815.1,2814.1,3.27060534]
[1740319558929,0.8168,2815.1,2814.1,3.0]
[1740319559507,0.8168,2814.9,2813.4,5.39]
[1740319559708,0.8168,2814.7,2813.1,0.267]
[1740319559921,0.8168,2814.7,2813.0,5.657]
[1740319560121,0.8168,2814.5,2813.1,3.56915]
[1740319560508,5.24,2814.4,2813.1,0.56915]
[1740319560705,0.8168,2814.3,2813.0,0.26538613]
[1740319560926,0.8168,2814.2,2813.0,0.26538613]
[1740319562009,0.8168,2814.2,2812.8,5.39]
[1740319562600,0.8168,2814.2,2812.9,3.0]
[1740319562803,0.8168,2814.0,2812.8,5.39]
[1740319563304,0.7539,2813.8,2812.6,0.55]
[1740319563505,0.7539,2813.8,2812.8,0.55]
[1740319563708,0.7539,2813.8,2812.7,0.26066329]
[1740319564953,0.7539,2813.8,2812.8,0.55]
[1740319565160,0.7539,2813.8,2812.9,0.0345]
[1740319565457,0.7539,2813.8,2813.0,0.55]
[1740319566610,0.7539,2813.8,2813.1,3.0]
[1740319566816,0.7539,2813.8,2813.2,0.894]
[1740319569859,0.7539,2813.8,2813.3,0.55]
[1740319570221,5.24,2815.0,2813.3,0.55]
[1740319570426,5.24,2815.0,2813.3,5.94]
[1740319570427,0.7893,2814.9,2813.3,5.94]
[1740319570925,0.7893,2814.9,2813.4,3.0]
[1740319571123,0.7893,2814.7,2813.5,0.894]
[1740319572063,0.7893,2814.7,2813.6,0.27331014]
[1740319573165,0.7893,2814.7,2813.4,3.0]
[1740319573675,0.7893,2814.7,2812.9,0.267]
[1740319573676,0.7893,2814.5,2812.9,0.267]
[1740319573965,0.7893,2814.5,2812.6,0.267]
[1740319574169,5.79,2814.6,2812.7,3.55]
[1740319574170,0.7893,2814.3,2812.7,3.55]
[1740319574530,0.7893,2814.1,2812.6,5.72015]
[1740319575740,0.7893,2813.8,2812.3,5.39]
[1740319575940,0.7893,2813.6,2812.3,0.26425403]
[1740319576337,0.7893,2813.6,2811.9,5.39]
[1740319576539,0.7893,2813.4,2812.0,3.0]
[1740319577665,0.60293,2813.5,2811.9,1.4557]
[1740319577666,0.7893,2813.2,2811.9,1.4557]
[1740319577841,0.7893,2813.0,2811.6,3.0]
[1740319578045,0.7893,2813.0,2811.9,0.26374693]
[1740319581201,0.7893,2813.0,2811.6,3.0]
[1740319581358,0.7893,2813.0,2811.7,0.5845]
[1740319581532,0.7893,2813.0,2811.9,0.55]
[1740319581736,0.7893,2813.0,2812.0,0.355]
[1740319583768,0.7893,2813.0,2812.1,3.55]
[1740319587377,0.7893,2813.0,2812.1,8.94]
[1740319591190,0.7893,2813.0,2812.7,0.26073166]
[1740319596192,0.7893,2813.0,2812.5,0.26313447]
[1740319596487,0.7893,2813.0,2812.1,8.39]
[1740319596785,0.7893,2813.0,2811.6,5.39]
[1740319596992,0.7893,2813.0,2811.7,0.539]
[1740319597493,0.7893,2813.0,2811.7,3.539]
[1740319599593,0.7893,2813.0,2812.1,0.26211191]
[1740319602294,0.8188,2812.9,2812.1,0.26211191]
[1740319605199,0.8188,2812.9,2812.4,0.55]
[1740319605359,0.793,2813.6,2812.6,3.55]
[1740319605567,0.793,2813.6,2812.8,0.71251819]
[1740319606303,0.793,2813.6,2812.7,0.894]
[1740319607520,0.793,2813.6,2812.6,8.39]
[1740319611117,5.24,2813.5,2812.1,0.52911191]
[1740319611421,0.8041,2813.4,2812.1,0.52911191]
[1740319611719,0.8041,2813.3,2812.7,0.71522414]
[1740319615099,0.8041,2813.3,2812.1,0.52911191]
[1740319615486,0.8041,2813.2,2812.1,0.52911191]
[1740319620484,0.8041,2813.2,2812.1,0.26211191]
[1740319620688,0.814,2813.1,2812.1,0.26211191]
[1740319623299,0.814,2813.1,2811.6,0.267]
[1740319623618,0.8175,2812.9,2811.9,0.27046991]
[1740319623817,0.8175,2812.7,2811.9,0.27046991]
[1740319631013,0.8175,2812.7,2812.0,0.55]
[1740319634946,0.8175,2812.7,2812.1,3.0]
[1740319635534,0.8175,2812.7,2812.2,0.55]
[1740319637114,0.8175,2812.7,2812.1,3.0]
[1740319637313,0.8175,2812.7,2812.0,5.39]
[1740319637736,5.24,2812.7,2811.1,5.5999824]
[1740319637952,0.8148,2812.6,2811.1,5.657]
[1740319638135,0.8148,2812.6,2811.2,0.55]
[1740319638338,0.8148,2812.6,2811.2,3.55]
[1740319638518,0.8148,2812.4,2811.0,0.1796302]
[1740319638719,0.8148,2812.4,2810.9,5.39]
[1740319640429,0.8148,2812.4,2811.3,0.26240974]
[1740319641633,0.8148,2812.4,2811.0,3.0]
[1740319642645,5.24,2812.3,2810.8,0.1524181]
[1740319642958,0.8148,2812.2,2810.8,0.1524181]
[1740319643157,0.8148,2812.2,2811.0,0.27006933]
[1740319646864,5.24,2812.1,2811.0,0.27006933]
[1740319647031,0.7704,2812.0,2811.0,0.27006933]
[1740319650044,0.7704,2812.0,2810.8,0.1524181]
[1740319652863,0.8122,2811.8,2810.8,0.1524181]
[1740319653045,0.8122,2811.6,2810.8,0.1524181]
[1740319656541,0.8122,2811.6,2810.9,0.55]
[1740319656773,0.8122,2811.6,2811.0,0.267]
[1740319665797,0.8122,2811.6,2811.0,0.3015]
[1740319667659,0.7796,2811.9,2811.1,0.55]
[1740319667864,0.7796,2811.9,2811.3,0.55]
[1740319668077,0.7796,2811.9,2811.4,0.355]
[1740319668815,0.7585,2812.6,2811.5,0.0345]
[1740319671067,0.7585,2812.6,2811.6,3.55]
[1740319671299,0.7585,2812.6,2811.6,8.94]
[1740319672004,0.7585,2812.6,2812.0,0.27084816]
[1740319680808,0.7585,2812.6,2812.1,0.55]
[1740319681109,0.7585,2813.0,2812.3,0.55]
[1740319681413,0.7585,2813.0,2812.4,3.355]
[1740319681606,0.7585,2813.0,2812.5,0.0345]
[1740319681805,0.7585,2813.8,2812.6,0.55]
[1740319682015,0.7585,2813.7,2812.7,3.0]
[1740319685293,0.7585,2813.7,2813.2,0.26178778]
[1740319685623,0.7585,2813.7,2813.2,0.29628778]
[1740319686519,0.8007,2814.4,2813.3,0.55]
[1740319686705,0.8007,2814.4,2813.4,3.0]
[1740319686878,0.8007,2814.4,2813.5,0.894]
[1740319693124,0.8007,2814.4,2813.3,5.39]
[1740319697339,5.24,2814.3,2813.1,0.26586034]
[1740319697536,0.8193,2814.2,2813.1,0.26586034]
[1740319699633,0.8193,2814.2,2813.2,0.55]
[1740319701547,0.8193,2814.2,2813.1,0.26586034]
[1740319701744,0.8193,2814.0,2813.1,0.26586034]
[1740319705059,0.8193,2814.0,2813.2,0.55]
[1740319706539,0.8193,2814.0,2813.4,0.55]
[1740319709153,0.8193,2814.0,2813.5,3.0]
[1740319710445,0.8193,2814.0,2813.6,0.55]
[1740319710650,0.8193,2814.0,2813.7,0.9206]
[1740319710852,0.7672,2814.8,2813.8,0.55]
[1740319711255,0.7672,2814.8,2814.0,0.55]
[1740319711415,0.7672,2814.8,2814.2,0.55]
[1740319714022,0.7672,2814.8,2814.4,0.55]
[1740319715051,0.7672,2814.8,2814.4,5.94]
[1740319715221,0.7672,2814.8,2814.5,3.6206]
[1740319717267,0.7672,2814.8,2814.7,0.26985845]
[1740319717844,0.7672,2814.8,2814.5,3.6206]
[1740319721147,0.7672,2814.8,2814.5,0.6206]
[1740319721379,0.7672,2814.8,2814.2,3.266]
[1740319721593,0.7672,2814.8,2814.2,3.0]
[1740319722179,0.7672,2814.8,2814.1,5.39]
[1740319722381,0.7672,2814.8,2813.8,5.39]
[1740319724142,0.7672,2814.8,2813.9,3.0]
[1740319724347,0.7672,2814.8,2814.0,0.839]
[1740319727647,0.7672,2814.8,2814.1,0.55]
[1740319729482,0.7672,2814.8,2814.0,0.839]
[1740319741616,0.7672,2814.8,2814.1,0.55]
[1740319741927,5.24,2815.4,2814.3,0.55]
[1740319742093,5.24,2815.8,2814.4,3.0]
[1740319742294,5.24,2815.8,2814.5,0.894]
[1740319742712,0.55,2815.9,2814.6,1.5878]
[1740319745221,0.8006,2815.8,2814.6,1.5878]
[1740319746817,0.8006,2815.8,2814.9,0.27038805]
[1740319747224,0.8006,2815.8,2815.0,0.55]
[1740319747531,0.8006,2815.8,2815.1,3.0]
[1740319747736,0.8006,2815.8,2815.2,0.55]
[1740319748237,0.55,2815.9,2815.2,0.55]
[1740319748539,0.55,2815.9,2815.3,0.78]
[1740319748712,0.55,2815.9,2815.5,0.55]